[Event "Titled Tuesday Blitz August 08 Early 2023"]
[White "Davidson, Kevin"]
[Black "ATM622"]
[WhiteFideId "2056810"]
[WhiteElo "2394"]
[BlackElo "2507"]
[Result "0-1"]
[Round "6"]
[TimeControl "180+1"]
[Date "2023.08.08"]
[WhiteClock "0:00:03"]
[BlackClock "0:01:45"]
[Board "145"]

1. e4 {[%clk 0:03:00]}  c6 {[%clk 0:02:58]} 2. d4 {[%clk 0:03:00]}  d5 {[%clk 0:02:57]} 3. e5 {[%clk 0:03:00]}  c5 {[%clk 0:02:57]} 4. dxc5 {[%clk 0:03:01]}  e6 {[%clk 0:02:56]} 5. a3 {[%clk 0:03:01]}  Bxc5 {[%clk 0:02:55]} 6. Qg4 {[%clk 0:03:00]}  Ne7 {[%clk 0:02:54]} 7. Nf3 {[%clk 0:03:00]}  Nbc6 {[%clk 0:02:51]} 8. b4 {[%clk 0:02:43]}  Bb6 {[%clk 0:02:50]} 9. b5 {[%clk 0:02:26]}  h5 {[%clk 0:02:43]} 10. Qxg7 {[%clk 0:02:22]}  Rg8 {[%clk 0:02:42]} 11. Qh7 {[%clk 0:02:10]}  Nd4 {[%clk 0:02:41]} 12. Nbd2 {[%clk 0:02:01]}  Qc7 {[%clk 0:02:30]} 13. Bd3 {[%clk 0:01:28]}  Qc3 {[%clk 0:02:18]} 14. Rb1 {[%clk 0:01:19]}  Nxf3+ {[%clk 0:02:17]} 15. gxf3 {[%clk 0:01:17]}  Qxe5+ {[%clk 0:02:15]} 16. Kf1 {[%clk 0:01:09]}  Qd4 {[%clk 0:02:12]} 17. Ke2 {[%clk 0:00:52]}  Qxf2+ {[%clk 0:02:10]} 18. Kd1 {[%clk 0:00:53]}  Qg2 {[%clk 0:01:59]} 19. Rf1 {[%clk 0:00:45]}  Bd7 {[%clk 0:01:57]} 20. Qxh5 {[%clk 0:00:32]}  O-O-O {[%clk 0:01:55]} 21. Bb2 {[%clk 0:00:32]}  Nf5 {[%clk 0:01:52]} 22. Bxf5 {[%clk 0:00:26]}  exf5 {[%clk 0:01:50]} 23. Bf6 {[%clk 0:00:03]}  Be3 {[%clk 0:01:45]} 0-1


[Site "https://www.chess.com"]

[Event "Titled Tuesday Blitz August 08 Early 2023"]
[White "Womacka, Mathias"]
[Black "Gu, Xiaobing"]
[WhiteFideId "4611390"]
[BlackFideId "8602611"]
[WhiteElo "2506"]
[BlackElo "2392"]
[Result "1-0"]
[Round "6"]
[TimeControl "180+1"]
[Date "2023.08.08"]
[WhiteClock "0:00:38"]
[BlackClock "0:00:35"]
[Board "146"]

1. e4 {[%clk 0:03:00]}  c5 {[%clk 0:02:49]} 2. Nf3 {[%clk 0:03:00]}  d6 {[%clk 0:02:48]} 3. d4 {[%clk 0:03:00]}  cxd4 {[%clk 0:02:48]} 4. Nxd4 {[%clk 0:03:01]}  Nf6 {[%clk 0:02:48]} 5. Nc3 {[%clk 0:03:01]}  a6 {[%clk 0:02:49]} 6. Be2 {[%clk 0:03:02]}  e5 {[%clk 0:02:48]} 7. Nb3 {[%clk 0:03:01]}  Be7 {[%clk 0:02:48]} 8. O-O {[%clk 0:03:02]}  O-O {[%clk 0:02:47]} 9. Kh1 {[%clk 0:03:02]}  Nc6 {[%clk 0:02:46]} 10. Be3 {[%clk 0:02:57]}  b5 {[%clk 0:02:39]} 11. a4 {[%clk 0:02:55]}  b4 {[%clk 0:02:33]} 12. Nd5 {[%clk 0:02:54]}  Nxd5 {[%clk 0:02:06]} 13. exd5 {[%clk 0:02:55]}  Na5 {[%clk 0:02:06]} 14. Qd2 {[%clk 0:02:25]}  Rb8 {[%clk 0:01:56]} 15. f4 {[%clk 0:02:14]}  exf4 {[%clk 0:01:48]} 16. Bxf4 {[%clk 0:02:13]}  Bf6 {[%clk 0:01:29]} 17. Nxa5 {[%clk 0:02:05]}  Qxa5 {[%clk 0:01:28]} 18. Bxd6 {[%clk 0:02:05]}  Rd8 {[%clk 0:01:24]} 19. Bxb8 {[%clk 0:02:03]}  Rxd5 {[%clk 0:01:15]} 20. Qe3 {[%clk 0:01:50]}  Bd7 {[%clk 0:01:10]} 21. Bc4 {[%clk 0:01:36]}  Rg5 {[%clk 0:01:08]} 22. Bf4 {[%clk 0:01:31]}  Rg6 {[%clk 0:00:57]} 23. Bd3 {[%clk 0:01:16]}  Rg4 {[%clk 0:00:57]} 24. h3 {[%clk 0:01:13]}  Rh4 {[%clk 0:00:57]} 25. Rad1 {[%clk 0:00:56]}  Bc6 {[%clk 0:00:47]} 26. Be4 {[%clk 0:00:54]}  Bxe4 {[%clk 0:00:42]} 27. Qxe4 {[%clk 0:00:54]}  g5 {[%clk 0:00:43]} 28. Qe8+ {[%clk 0:00:49]}  Kg7 {[%clk 0:00:42]} 29. Bg3 {[%clk 0:00:42]}  Rh6 {[%clk 0:00:35]} 30. Rd7 {[%clk 0:00:38]} 1-0


[Site "https://www.chess.com"]

[Event "Titled Tuesday Blitz August 08 Early 2023"]
[White "Ventura Bolet, Maxim"]
[Black "Gavilan Diaz, Mario"]
[WhiteFideId "22238824"]
[BlackFideId "2260905"]
[WhiteElo "2386"]
[BlackElo "2499"]
[Result "1-0"]
[Round "6"]
[TimeControl "180+1"]
[Date "2023.08.08"]
[WhiteClock "0:01:17"]
[BlackClock "0:01:23"]
[Board "150"]

1. e4 {[%clk 0:03:00]}  e6 {[%clk 0:02:59]} 2. Nf3 {[%clk 0:03:00]}  d5 {[%clk 0:02:58]} 3. e5 {[%clk 0:03:01]}  c5 {[%clk 0:02:58]} 4. b4 {[%clk 0:03:01]}  b6 {[%clk 0:02:52]} 5. a3 {[%clk 0:02:50]}  Ne7 {[%clk 0:02:49]} 6. c3 {[%clk 0:02:50]}  Ng6 {[%clk 0:02:46]} 7. d4 {[%clk 0:02:49]}  cxd4 {[%clk 0:02:45]} 8. cxd4 {[%clk 0:02:50]}  a5 {[%clk 0:02:44]} 9. b5 {[%clk 0:02:44]}  f6 {[%clk 0:02:36]} 10. Bd3 {[%clk 0:02:39]}  Be7 {[%clk 0:02:30]} 11. h4 {[%clk 0:02:33]}  O-O {[%clk 0:02:26]} 12. h5 {[%clk 0:02:32]}  Nh8 {[%clk 0:02:26]} 13. exf6 {[%clk 0:02:13]}  Bxf6 {[%clk 0:02:24]} 14. Qc2 {[%clk 0:02:00]}  h6 {[%clk 0:02:24]} 15. Bh7+ {[%clk 0:01:55]}  Kf7 {[%clk 0:02:24]} 16. a4 {[%clk 0:01:33]}  Ra7 {[%clk 0:01:43]} 17. Ba3 {[%clk 0:01:30]}  Re8 {[%clk 0:01:37]} 18. Qg6+ {[%clk 0:01:18]}  Nxg6 {[%clk 0:01:23]} 19. hxg6# {[%clk 0:01:17]} 1-0


[Site "https://www.chess.com"]

[Event "Titled Tuesday Blitz August 08 Early 2023"]
[White "marik_spb"]
[Black "Krzywda, Andrzej"]
[BlackFideId "1114565"]
[WhiteElo "2485"]
[BlackElo "2361"]
[Result "0-1"]
[Round "6"]
[TimeControl "180+1"]
[Date "2023.08.08"]
[WhiteClock "0:00:04"]
[BlackClock "0:00:21"]
[Board "156"]

1. e4 {[%clk 0:03:00]}  e5 {[%clk 0:02:59]} 2. Nf3 {[%clk 0:03:00]}  Nf6 {[%clk 0:03:00]} 3. Nxe5 {[%clk 0:03:00]}  d6 {[%clk 0:03:01]} 4. Nf3 {[%clk 0:03:00]}  Nxe4 {[%clk 0:03:01]} 5. d4 {[%clk 0:03:01]}  d5 {[%clk 0:03:01]} 6. Bd3 {[%clk 0:03:01]}  Be7 {[%clk 0:03:02]} 7. O-O {[%clk 0:03:01]}  Bf5 {[%clk 0:03:02]} 8. Nbd2 {[%clk 0:02:53]}  O-O {[%clk 0:02:55]} 9. Re1 {[%clk 0:02:51]}  Nd6 {[%clk 0:02:55]} 10. Bxf5 {[%clk 0:02:41]}  Nxf5 {[%clk 0:02:55]} 11. c3 {[%clk 0:02:33]}  Nd7 {[%clk 0:02:44]} 12. Nf1 {[%clk 0:02:31]}  Bd6 {[%clk 0:02:36]} 13. Ng3 {[%clk 0:02:29]}  Nxg3 {[%clk 0:02:35]} 14. hxg3 {[%clk 0:02:30]}  Re8 {[%clk 0:02:30]} 15. Rxe8+ {[%clk 0:02:28]}  Qxe8 {[%clk 0:02:30]} 16. Qb3 {[%clk 0:02:25]}  Nb6 {[%clk 0:02:30]} 17. a4 {[%clk 0:02:24]}  a5 {[%clk 0:02:29]} 18. Be3 {[%clk 0:02:21]}  Bxg3 {[%clk 0:02:25]} 19. Re1 {[%clk 0:02:15]}  Bd6 {[%clk 0:02:23]} 20. Qc2 {[%clk 0:01:49]}  Qxa4 {[%clk 0:02:17]} 21. Qf5 {[%clk 0:01:49]}  Qd7 {[%clk 0:02:17]} 22. Qh5 {[%clk 0:01:49]}  Nc4 {[%clk 0:02:03]} 23. Bc1 {[%clk 0:01:28]}  a4 {[%clk 0:01:57]} 24. Ng5 {[%clk 0:01:00]}  Qf5 {[%clk 0:01:44]} 25. Qh4 {[%clk 0:00:42]}  f6 {[%clk 0:01:27]} 26. Nf3 {[%clk 0:00:37]}  Qg6 {[%clk 0:01:27]} 27. Nh2 {[%clk 0:00:30]}  Re8 {[%clk 0:01:19]} 28. f3 {[%clk 0:00:15]}  h5 {[%clk 0:00:58]} 29. Nf1 {[%clk 0:00:13]}  Kh7 {[%clk 0:00:52]} 30. Rxe8 {[%clk 0:00:12]}  Qxe8 {[%clk 0:00:52]} 31. g4 {[%clk 0:00:10]}  g5 {[%clk 0:00:40]} 32. Bxg5 {[%clk 0:00:06]}  fxg5 {[%clk 0:00:38]} 33. Qxg5 {[%clk 0:00:07]}  hxg4 {[%clk 0:00:30]} 34. fxg4 {[%clk 0:00:03]}  Qg6 {[%clk 0:00:29]} 35. Qxd5 {[%clk 0:00:03]}  Qxg4+ {[%clk 0:00:29]} 36. Kf2 {[%clk 0:00:03]}  Qf4+ {[%clk 0:00:26]} 37. Kg1 {[%clk 0:00:03]}  Ne3 {[%clk 0:00:19]} 38. Qh1+ {[%clk 0:00:03]}  Kg8 {[%clk 0:00:16]} 39. Qh3 {[%clk 0:00:01]}  Qxf1+ {[%clk 0:00:15]} 40. Qxf1 {[%clk 0:00:02]}  Nxf1 {[%clk 0:00:16]} 41. Kxf1 {[%clk 0:00:03]}  Kf7 {[%clk 0:00:17]} 42. Ke2 {[%clk 0:00:03]}  Ke6 {[%clk 0:00:17]} 43. Kd3 {[%clk 0:00:04]}  b5 {[%clk 0:00:17]} 44. Ke4 {[%clk 0:00:03]}  c6 {[%clk 0:00:17]} 45. Ke3 {[%clk 0:00:01]}  Kd5 {[%clk 0:00:18]} 46. Kd3 {[%clk 0:00:01]}  Be7 {[%clk 0:00:18]} 47. Ke3 {[%clk 0:00:01]}  Kc4 {[%clk 0:00:19]} 48. Kd2 {[%clk 0:00:02]}  Kb3 {[%clk 0:00:19]} 49. Kc1 {[%clk 0:00:03]}  Bg5+ {[%clk 0:00:19]} 50. Kb1 {[%clk 0:00:02]}  a3 {[%clk 0:00:20]} 51. bxa3 {[%clk 0:00:02]}  Kxc3 {[%clk 0:00:20]} 52. d5 {[%clk 0:00:01]}  cxd5 {[%clk 0:00:20]} 53. Ka2 {[%clk 0:00:02]}  d4 {[%clk 0:00:20]} 54. a4 {[%clk 0:00:02]}  bxa4 {[%clk 0:00:20]} 55. Ka1 {[%clk 0:00:02]}  d3 {[%clk 0:00:20]} 56. Kb1 {[%clk 0:00:02]}  d2 {[%clk 0:00:20]} 57. Ka2 {[%clk 0:00:03]}  d1=Q {[%clk 0:00:20]} 58. Ka3 {[%clk 0:00:04]}  Qb3# {[%clk 0:00:21]} 0-1


[Site "https://www.chess.com"]

[Event "Titled Tuesday Blitz August 08 Early 2023"]
[White "Ocido, Michael"]
[Black "dr_tatiana"]
[WhiteFideId "115201920"]
[WhiteElo "2485"]
[BlackElo "2358"]
[Result "1-0"]
[Round "6"]
[TimeControl "180+1"]
[Date "2023.08.08"]
[WhiteClock "0:00:43"]
[BlackClock "0:00:00"]
[Board "157"]

1. d4 {[%clk 0:03:00]}  d5 {[%clk 0:02:59]} 2. c4 {[%clk 0:03:00]}  c6 {[%clk 0:02:59]} 3. Nf3 {[%clk 0:02:59]}  Nf6 {[%clk 0:02:58]} 4. Nc3 {[%clk 0:02:59]}  dxc4 {[%clk 0:02:58]} 5. a4 {[%clk 0:02:59]}  Bf5 {[%clk 0:02:58]} 6. e3 {[%clk 0:02:59]}  e6 {[%clk 0:02:58]} 7. Bxc4 {[%clk 0:02:59]}  Bb4 {[%clk 0:02:58]} 8. O-O {[%clk 0:02:59]}  O-O {[%clk 0:02:58]} 9. Qe2 {[%clk 0:02:59]}  Nbd7 {[%clk 0:02:55]} 10. h3 {[%clk 0:02:55]}  Bg6 {[%clk 0:02:54]} 11. Na2 {[%clk 0:02:53]}  Be7 {[%clk 0:02:49]} 12. Nc3 {[%clk 0:02:53]}  Bh5 {[%clk 0:02:15]} 13. Bb3 {[%clk 0:02:31]}  Nb6 {[%clk 0:02:09]} 14. a5 {[%clk 0:02:20]}  Nbd5 {[%clk 0:02:09]} 15. e4 {[%clk 0:02:15]}  Nxc3 {[%clk 0:01:34]} 16. bxc3 {[%clk 0:02:16]}  c5 {[%clk 0:01:34]} 17. Qd3 {[%clk 0:01:52]}  Bxf3 {[%clk 0:01:29]} 18. gxf3 {[%clk 0:01:51]}  cxd4 {[%clk 0:01:28]} 19. cxd4 {[%clk 0:01:52]}  Nh5 {[%clk 0:01:03]} 20. d5 {[%clk 0:01:47]}  Bd6 {[%clk 0:00:50]} 21. Rd1 {[%clk 0:01:16]}  Qh4 {[%clk 0:00:35]} 22. dxe6 {[%clk 0:01:10]}  Rad8 {[%clk 0:00:34]} 23. exf7+ {[%clk 0:01:04]}  Kh8 {[%clk 0:00:34]} 24. Qf1 {[%clk 0:00:58]}  Bc5 {[%clk 0:00:08]} 25. Rxd8 {[%clk 0:00:49]}  Rxd8 {[%clk 0:00:09]} 26. Qg2 {[%clk 0:00:47]}  Rd3 {[%clk 0:00:00]} 27. Bg5 {[%clk 0:00:43]} 1-0


[Site "https://www.chess.com"]

[Event "Titled Tuesday Blitz August 08 Early 2023"]
[White "Rottenwohrer Suarez, Juan"]
[Black "Hoffmann, Asa"]
[WhiteFideId "32068182"]
[BlackFideId "2001470"]
[WhiteElo "2482"]
[BlackElo "2357"]
[Result "1-0"]
[Round "6"]
[TimeControl "180+1"]
[Date "2023.08.08"]
[WhiteClock "0:00:10"]
[BlackClock "0:00:04"]
[Board "158"]

1. Nf3 {[%clk 0:03:00]}  d6 {[%clk 0:02:56]} 2. e4 {[%clk 0:02:59]}  Bg4 {[%clk 0:02:54]} 3. h3 {[%clk 0:02:57]}  Bh5 {[%clk 0:02:54]} 4. d4 {[%clk 0:02:56]}  Nf6 {[%clk 0:02:54]} 5. Nc3 {[%clk 0:02:55]}  c6 {[%clk 0:02:54]} 6. Qe2 {[%clk 0:02:55]}  e6 {[%clk 0:02:53]} 7. g4 {[%clk 0:02:55]}  Bg6 {[%clk 0:02:53]} 8. h4 {[%clk 0:02:55]}  d5 {[%clk 0:02:52]} 9. exd5 {[%clk 0:02:07]}  cxd5 {[%clk 0:02:52]} 10. Qb5+ {[%clk 0:02:07]}  Qd7 {[%clk 0:02:37]} 11. Ne5 {[%clk 0:02:06]}  Qxb5 {[%clk 0:02:33]} 12. Bxb5+ {[%clk 0:02:07]}  Nfd7 {[%clk 0:02:29]} 13. h5 {[%clk 0:01:54]}  Bxc2 {[%clk 0:02:23]} 14. Kd2 {[%clk 0:01:55]}  Be4 {[%clk 0:02:05]} 15. f3 {[%clk 0:01:55]}  Bxf3 {[%clk 0:02:04]} 16. Nxf3 {[%clk 0:01:54]}  Nc6 {[%clk 0:02:04]} 17. Bxc6 {[%clk 0:01:29]}  bxc6 {[%clk 0:02:03]} 18. Na4 {[%clk 0:01:30]}  Bd6 {[%clk 0:02:02]} 19. b3 {[%clk 0:01:29]}  Ke7 {[%clk 0:01:58]} 20. Kd3 {[%clk 0:01:29]}  f6 {[%clk 0:01:58]} 21. Bb2 {[%clk 0:01:13]}  e5 {[%clk 0:01:56]} 22. dxe5 {[%clk 0:01:13]}  fxe5 {[%clk 0:01:56]} 23. Rae1 {[%clk 0:01:01]}  e4+ {[%clk 0:01:49]} 24. Kc2 {[%clk 0:01:01]}  Rhf8 {[%clk 0:01:41]} 25. Nd4 {[%clk 0:01:01]}  Rf2+ {[%clk 0:01:39]} 26. Re2 {[%clk 0:01:01]}  Rxe2+ {[%clk 0:01:38]} 27. Nxe2 {[%clk 0:01:02]}  Be5 {[%clk 0:01:33]} 28. Nd4 {[%clk 0:00:52]}  Rc8 {[%clk 0:01:24]} 29. Rf1 {[%clk 0:00:51]}  g6 {[%clk 0:01:18]} 30. h6 {[%clk 0:00:36]}  c5 {[%clk 0:01:17]} 31. Nb5 {[%clk 0:00:32]}  a6 {[%clk 0:01:09]} 32. Nbc3 {[%clk 0:00:30]}  Ke6 {[%clk 0:01:05]} 33. g5 {[%clk 0:00:27]}  e3 {[%clk 0:00:57]} 34. Kd3 {[%clk 0:00:21]}  Bxc3 {[%clk 0:00:56]} 35. Nxc3 {[%clk 0:00:14]}  d4 {[%clk 0:00:55]} 36. Ne4 {[%clk 0:00:11]}  Ne5+ {[%clk 0:00:54]} 37. Ke2 {[%clk 0:00:10]}  a5 {[%clk 0:00:46]} 38. Rf6+ {[%clk 0:00:10]}  Ke7 {[%clk 0:00:46]} 39. Ba3 {[%clk 0:00:11]}  Nd7 {[%clk 0:00:45]} 40. Ra6 {[%clk 0:00:09]}  Rf8 {[%clk 0:00:35]} 41. Rxa5 {[%clk 0:00:09]}  Rf4 {[%clk 0:00:33]} 42. Bxc5+ {[%clk 0:00:08]}  Nxc5 {[%clk 0:00:32]} 43. Nxc5 {[%clk 0:00:08]}  Rf2+ {[%clk 0:00:32]} 44. Ke1 {[%clk 0:00:08]}  Rf5 {[%clk 0:00:22]} 45. Ra7+ {[%clk 0:00:06]}  Kd6 {[%clk 0:00:21]} 46. Nd3 {[%clk 0:00:07]}  Kd5 {[%clk 0:00:20]} 47. Rxh7 {[%clk 0:00:04]}  Ke4 {[%clk 0:00:19]} 48. Ke2 {[%clk 0:00:04]}  Ra5 {[%clk 0:00:17]} 49. Re7+ {[%clk 0:00:04]}  Kf5 {[%clk 0:00:16]} 50. a4 {[%clk 0:00:05]}  Kxg5 {[%clk 0:00:15]} 51. h7 {[%clk 0:00:05]}  Ra8 {[%clk 0:00:15]} 52. Ne5 {[%clk 0:00:05]}  Rh8 {[%clk 0:00:14]} 53. Nf7+ {[%clk 0:00:05]}  Kf6 {[%clk 0:00:14]} 54. Nxh8 {[%clk 0:00:05]}  Kxe7 {[%clk 0:00:14]} 55. Nxg6+ {[%clk 0:00:06]}  Kf6 {[%clk 0:00:14]} 56. h8=Q+ {[%clk 0:00:07]}  Kxg6 {[%clk 0:00:14]} 57. Qxd4 {[%clk 0:00:08]}  Kf5 {[%clk 0:00:14]} 58. Qxe3 {[%clk 0:00:09]}  Kg4 {[%clk 0:00:04]} 59. Kd3 {[%clk 0:00:10]} 1-0


[Site "https://www.chess.com"]

[Event "Titled Tuesday Blitz August 08 Early 2023"]
[White "Amanov, Zhanibek"]
[Black "Vivas Zamora, Fabian Ernesto"]
[WhiteFideId "13700189"]
[BlackFideId "3902480"]
[WhiteElo "2345"]
[BlackElo "2476"]
[Result "1-0"]
[Round "6"]
[TimeControl "180+1"]
[Date "2023.08.08"]
[WhiteClock "0:00:07"]
[BlackClock "0:00:01"]
[Board "161"]

1. e4 {[%clk 0:03:00]}  c5 {[%clk 0:02:54]} 2. Nf3 {[%clk 0:03:00]}  d6 {[%clk 0:02:54]} 3. Bb5+ {[%clk 0:03:00]}  Bd7 {[%clk 0:02:52]} 4. Bxd7+ {[%clk 0:03:00]}  Nxd7 {[%clk 0:02:53]} 5. O-O {[%clk 0:03:01]}  Ngf6 {[%clk 0:02:50]} 6. Re1 {[%clk 0:03:01]}  g6 {[%clk 0:02:44]} 7. c3 {[%clk 0:02:57]}  c4 {[%clk 0:01:58]} 8. d4 {[%clk 0:02:53]}  cxd3 {[%clk 0:01:58]} 9. Qxd3 {[%clk 0:02:53]}  Bg7 {[%clk 0:01:58]} 10. Bf4 {[%clk 0:02:47]}  O-O {[%clk 0:01:56]} 11. Nbd2 {[%clk 0:02:47]}  Nc5 {[%clk 0:01:54]} 12. Qc2 {[%clk 0:02:47]}  Rc8 {[%clk 0:01:53]} 13. Rad1 {[%clk 0:02:46]}  Qb6 {[%clk 0:01:48]} 14. e5 {[%clk 0:02:26]}  dxe5 {[%clk 0:01:44]} 15. Nxe5 {[%clk 0:02:17]}  Ne6 {[%clk 0:01:36]} 16. Be3 {[%clk 0:02:10]}  Qb5 {[%clk 0:01:29]} 17. Ndf3 {[%clk 0:01:53]}  Rfd8 {[%clk 0:01:05]} 18. Nd4 {[%clk 0:01:50]}  Nxd4 {[%clk 0:01:03]} 19. Bxd4 {[%clk 0:01:43]}  Nh5 {[%clk 0:00:20]} 20. Qb3 {[%clk 0:01:27]}  Qxb3 {[%clk 0:00:18]} 21. axb3 {[%clk 0:01:28]}  Nf4 {[%clk 0:00:14]} 22. Nf3 {[%clk 0:01:18]}  Bxd4 {[%clk 0:00:13]} 23. Nxd4 {[%clk 0:01:15]}  Kf8 {[%clk 0:00:12]} 24. Re4 {[%clk 0:01:10]}  Nh5 {[%clk 0:00:08]} 25. Rde1 {[%clk 0:01:09]}  e6 {[%clk 0:00:08]} 26. g4 {[%clk 0:01:05]}  Nf6 {[%clk 0:00:07]} 27. Rf4 {[%clk 0:01:05]}  Kg7 {[%clk 0:00:05]} 28. g5 {[%clk 0:00:49]}  Nd5 {[%clk 0:00:05]} 29. Rfe4 {[%clk 0:00:45]}  Rd6 {[%clk 0:00:06]} 30. c4 {[%clk 0:00:35]}  Nb4 {[%clk 0:00:05]} 31. Nb5 {[%clk 0:00:34]}  Rb6 {[%clk 0:00:03]} 32. Nxa7 {[%clk 0:00:31]}  Rd8 {[%clk 0:00:04]} 33. c5 {[%clk 0:00:29]}  Ra6 {[%clk 0:00:03]} 34. Rxb4 {[%clk 0:00:28]}  Rxa7 {[%clk 0:00:04]} 35. Rc4 {[%clk 0:00:25]}  Rd2 {[%clk 0:00:04]} 36. Rb1 {[%clk 0:00:21]}  Ra2 {[%clk 0:00:02]} 37. Rb4 {[%clk 0:00:21]}  Ra7 {[%clk 0:00:02]} 38. h4 {[%clk 0:00:17]}  Kf8 {[%clk 0:00:02]} 39. Rc4 {[%clk 0:00:14]}  Ra2 {[%clk 0:00:01]} 40. Rb4 {[%clk 0:00:13]}  Ra7 {[%clk 0:00:01]} 41. Rb6 {[%clk 0:00:09]}  Rd4 {[%clk 0:00:01]} 42. b4 {[%clk 0:00:08]}  Rxh4 {[%clk 0:00:01]} 43. Rd1 {[%clk 0:00:09]}  Rg4+ {[%clk 0:00:02]} 44. Kh2 {[%clk 0:00:09]}  Rxg5 {[%clk 0:00:02]} 45. Rd7 {[%clk 0:00:08]}  Rg4 {[%clk 0:00:02]} 46. Rdxb7 {[%clk 0:00:08]}  Rxb7 {[%clk 0:00:02]} 47. Rxb7 {[%clk 0:00:08]}  Rc4 {[%clk 0:00:03]} 48. b3 {[%clk 0:00:07]}  h5 {[%clk 0:00:01]} 49. bxc4 {[%clk 0:00:07]} 1-0


[Site "https://www.chess.com"]

[Event "Titled Tuesday Blitz August 08 Early 2023"]
[White "amanjazu"]
[Black "Omariev, Maksim"]
[BlackFideId "4193423"]
[WhiteElo "2328"]
[BlackElo "2468"]
[Result "1-0"]
[Round "6"]
[TimeControl "180+1"]
[Date "2023.08.08"]
[WhiteClock "0:00:09"]
[BlackClock "0:00:07"]
[Board "164"]

1. g3 {[%clk 0:03:00]}  h5 {[%clk 0:02:51]} 2. h4 {[%clk 0:02:58]}  d5 {[%clk 0:02:49]} 3. Nf3 {[%clk 0:02:58]}  c6 {[%clk 0:02:49]} 4. Bg2 {[%clk 0:02:58]}  Nf6 {[%clk 0:02:49]} 5. O-O {[%clk 0:02:59]}  Bf5 {[%clk 0:02:48]} 6. d3 {[%clk 0:02:58]}  e6 {[%clk 0:02:49]} 7. Bg5 {[%clk 0:02:52]}  Be7 {[%clk 0:02:45]} 8. c4 {[%clk 0:02:42]}  Nbd7 {[%clk 0:02:25]} 9. cxd5 {[%clk 0:02:34]}  exd5 {[%clk 0:02:23]} 10. Nc3 {[%clk 0:02:34]}  Ng4 {[%clk 0:02:21]} 11. e4 {[%clk 0:02:25]}  dxe4 {[%clk 0:02:21]} 12. dxe4 {[%clk 0:02:22]}  Bg6 {[%clk 0:02:21]} 13. Qd4 {[%clk 0:02:08]}  O-O {[%clk 0:02:17]} 14. Rad1 {[%clk 0:02:06]}  Nc5 {[%clk 0:01:37]} 15. Qc4 {[%clk 0:01:43]}  Qe8 {[%clk 0:01:26]} 16. Nd4 {[%clk 0:01:10]}  Ne5 {[%clk 0:00:48]} 17. Qe2 {[%clk 0:00:51]}  Bxg5 {[%clk 0:00:35]} 18. hxg5 {[%clk 0:00:52]}  f6 {[%clk 0:00:36]} 19. f4 {[%clk 0:00:50]}  Ned3 {[%clk 0:00:23]} 20. f5 {[%clk 0:00:43]}  Bf7 {[%clk 0:00:20]} 21. g6 {[%clk 0:00:43]}  Bc4 {[%clk 0:00:20]} 22. Qxh5 {[%clk 0:00:43]}  Rf7 {[%clk 0:00:11]} 23. Qh7+ {[%clk 0:00:35]}  Kf8 {[%clk 0:00:12]} 24. gxf7 {[%clk 0:00:33]}  Bxf7 {[%clk 0:00:11]} 25. Qh8+ {[%clk 0:00:30]}  Bg8 {[%clk 0:00:11]} 26. Ne6+ {[%clk 0:00:23]}  Nxe6 {[%clk 0:00:11]} 27. fxe6 {[%clk 0:00:19]}  Ne5 {[%clk 0:00:08]} 28. Rxf6+ {[%clk 0:00:16]}  gxf6 {[%clk 0:00:07]} 29. Qxf6+ {[%clk 0:00:17]}  Nf7 {[%clk 0:00:08]} 30. exf7 {[%clk 0:00:11]}  Bxf7 {[%clk 0:00:09]} 31. e5 {[%clk 0:00:09]}  Qe6 {[%clk 0:00:09]} 32. Qxe6 {[%clk 0:00:08]}  Bxe6 {[%clk 0:00:09]} 33. Rd6 {[%clk 0:00:08]}  Ke7 {[%clk 0:00:10]} 34. Ne4 {[%clk 0:00:09]}  Rg8 {[%clk 0:00:10]} 35. Nc5 {[%clk 0:00:09]}  Bxa2 {[%clk 0:00:09]} 36. Rd7+ {[%clk 0:00:08]}  Ke8 {[%clk 0:00:09]} 37. Rxb7 {[%clk 0:00:09]}  Rxg3 {[%clk 0:00:10]} 38. Kf2 {[%clk 0:00:09]}  Rg5 {[%clk 0:00:09]} 39. Bxc6+ {[%clk 0:00:09]}  Kd8 {[%clk 0:00:05]} 40. Rd7+ {[%clk 0:00:04]}  Kc8 {[%clk 0:00:05]} 41. Bb7+ {[%clk 0:00:03]}  Kb8 {[%clk 0:00:03]} 42. Re7 {[%clk 0:00:04]}  Rf5+ {[%clk 0:00:02]} 43. Ke3 {[%clk 0:00:05]}  Rf7 {[%clk 0:00:02]} 44. Rxf7 {[%clk 0:00:04]}  Bxf7 {[%clk 0:00:03]} 45. Kd4 {[%clk 0:00:05]}  Kc7 {[%clk 0:00:03]} 46. Be4 {[%clk 0:00:06]}  Kb6 {[%clk 0:00:02]} 47. e6 {[%clk 0:00:06]}  Bxe6 {[%clk 0:00:02]} 48. Nxe6 {[%clk 0:00:06]}  Ka5 {[%clk 0:00:03]} 49. Kc3 {[%clk 0:00:06]}  Ka4 {[%clk 0:00:03]} 50. Nc5+ {[%clk 0:00:06]}  Kb5 {[%clk 0:00:03]} 51. Nb7 {[%clk 0:00:06]}  a5 {[%clk 0:00:04]} 52. Nxa5 {[%clk 0:00:05]}  Ka4 {[%clk 0:00:03]} 53. b4 {[%clk 0:00:05]}  Kb5 {[%clk 0:00:03]} 54. Nb3 {[%clk 0:00:05]}  Ka4 {[%clk 0:00:04]} 55. Nd4 {[%clk 0:00:05]}  Ka3 {[%clk 0:00:04]} 56. b5 {[%clk 0:00:06]}  Ka4 {[%clk 0:00:05]} 57. b6 {[%clk 0:00:07]}  Ka5 {[%clk 0:00:06]} 58. b7 {[%clk 0:00:07]}  Ka6 {[%clk 0:00:07]} 59. b8=Q {[%clk 0:00:08]}  Ka5 {[%clk 0:00:07]} 60. Qb5# {[%clk 0:00:09]} 1-0


[Site "https://www.chess.com"]

[Event "Titled Tuesday Blitz August 08 Early 2023"]
[White "Maus7"]
[Black "Osinovsky, Stepan"]
[BlackFideId "4157354"]
[WhiteElo "2456"]
[BlackElo "2325"]
[Result "1-0"]
[Round "6"]
[TimeControl "180+1"]
[Date "2023.08.08"]
[WhiteClock "0:00:11"]
[BlackClock "0:00:00"]
[Board "167"]

1. e4 {[%clk 0:03:00]}  e5 {[%clk 0:02:58]} 2. Nf3 {[%clk 0:03:01]}  Nc6 {[%clk 0:02:58]} 3. Bc4 {[%clk 0:03:01]}  Nf6 {[%clk 0:02:57]} 4. Ng5 {[%clk 0:03:02]}  d5 {[%clk 0:02:58]} 5. exd5 {[%clk 0:03:02]}  Na5 {[%clk 0:02:58]} 6. Bb5+ {[%clk 0:03:03]}  c6 {[%clk 0:02:59]} 7. dxc6 {[%clk 0:03:04]}  bxc6 {[%clk 0:02:59]} 8. Bd3 {[%clk 0:03:04]}  Nd5 {[%clk 0:02:42]} 9. h4 {[%clk 0:03:04]}  h6 {[%clk 0:02:32]} 10. Qh5 {[%clk 0:03:04]}  Qe7 {[%clk 0:02:21]} 11. Nxf7 {[%clk 0:03:00]}  Nf4 {[%clk 0:02:17]} 12. Nd6+ {[%clk 0:02:01]}  Kd8 {[%clk 0:01:24]} 13. Nxc8 {[%clk 0:01:45]}  Rxc8 {[%clk 0:01:12]} 14. Qf3 {[%clk 0:01:41]}  Nb7 {[%clk 0:01:01]} 15. Bf5 {[%clk 0:01:05]}  Rc7 {[%clk 0:00:53]} 16. Be4 {[%clk 0:01:01]}  Nc5 {[%clk 0:00:33]} 17. d3 {[%clk 0:00:36]}  Qd6 {[%clk 0:00:15]} 18. O-O {[%clk 0:00:27]}  g5 {[%clk 0:00:12]} 19. Nd2 {[%clk 0:00:24]}  g4 {[%clk 0:00:12]} 20. Qe3 {[%clk 0:00:19]}  Qf6 {[%clk 0:00:12]} 21. Nc4 {[%clk 0:00:18]}  Nce6 {[%clk 0:00:11]} 22. g3 {[%clk 0:00:18]}  Bc5 {[%clk 0:00:10]} 23. Qe1 {[%clk 0:00:16]}  Rg8 {[%clk 0:00:07]} 24. Be3 {[%clk 0:00:15]}  Nd4 {[%clk 0:00:07]} 25. c3 {[%clk 0:00:12]}  Nc2 {[%clk 0:00:00]} 26. Qd2 {[%clk 0:00:11]} 1-0


[Site "https://www.chess.com"]